Cogmind - Beta 15 @@@ ROGUE MODE // 2025.10.03 @ 23:39:37 Player: anonymous Result: Destroyed by G-34 Mercenary with Small Laser Performance ------------- Evolutions (0) 0 Regions Visited (1) 200 Robots Destroyed (16) 80 Value Destroyed (373) 373 Prototype IDs (0) 0 Alien Tech Used (0) 0 Bonus (0) 0 TOTAL SCORE: 653 Bonus ------- None Cogmind --------- Core Integrity 0/250 Matter 272/300 Energy 249/265 System Corruption 0% Temperature Cool (30) Movement Rolling (100) Location -10/Materials Parts ------- > --- POWER (1) -------- Improved Ion Engine > --- PROPULSION (2) --- Compact Wheel Compact Wheel > --- UTILITY (2) ------ Medium Storage Unit Sensor Array > --- WEAPON (2) ------- Small Laser Particle Gun > --- INVENTORY (10) --- Improved Ion Engine Improved Heat Sink Signal Interpreter Seismic Detector Utility Shielding Particle Cannon Flail Peak State ------------ > --- POWER ------------ Improved Ion Engine > --- PROPULSION ------- Compact Wheel Compact Wheel > --- UTILITY ---------- Medium Storage Unit Seismic Detector > --- WEAPON ----------- Light Assault Rifle Flail > --- INVENTORY -------- Improved Ion Engine Light Treads Light Treads Improved Heat Sink Signal Interpreter Utility Shielding Small Laser Particle Gun Particle Cannon [Rating: 10] Favorites ----------- Power Improved Ion Engine Engine Improved Ion Engine Propulsion Compact Wheel Treads Light Treads Wheel Compact Wheel Utility Medium Storage Unit Device Seismic Detector Storage Medium Storage Unit Weapon Small Laser Energy Gun Small Laser Ballistic Gun Light Assault Rifle Special Weapon Mining Laser Impact Weapon Flail Build | -11 -10 ------- Run | Yrd Mat Slots Evolved . | . . Power . | . . Propulsion . | . . Utility . | . . Weapon . | . . Parts Attached 17 | 7 10 Power 2 | 1 1 Engine 2 | 1 1 Core . | . . Reactor . | . . Propulsion 4 | 2 2 Treads 2 | . 2 Leg . | . . Wheel 2 | 2 . Hover . | . . Flight . | . . Utility 4 | 2 2 Device 2 | 1 1 Storage 2 | 1 1 Processor . | . . Hackware . | . . Protection . | . . Artifact . | . . Weapon 7 | 2 5 Energy Gun 3 | 2 1 Energy Cannon . | . . Ballistic Gun 2 | . 2 Ballistic Cannon . | . . Launcher . | . . Special Weapon 1 | . 1 Impact Weapon 1 | . 1 Slashing Weapon . | . . Piercing Weapon . | . . Special Melee Weapon . | . . Unidentified Prototypes . | . . Parts Lost 5 | . 5 Power . | . . Propulsion 2 | . 2 Utility . | . . Weapon 3 | . 3 Highest Loss Streak 2 | . 2 To Critical Strikes . | . . Average Backups 7 | 2 8 Power . | . . Propulsion 1 | 1 1 Utility 2 | . 2 Weapon 2 | 1 2 Tool/Special . | . . Unused Backups 6 | . 6 Power 2 | . 2 Propulsion . | . . Utility 3 | . 3 Weapon 1 | . 1 Tool/Special . | . . Average Slot Usage (%) 96 | . 96 Engine 14 | . 14 Treads 8 | . 8 Wheel 16 | . 16 Device 13 | . 13 Storage 14 | . 14 Energy Gun 13 | . 13 Ballistic Gun 13 | . 13 Peak Build Rating 10 | 7 10 Average Rating 7 | 5 8 On Entrance 3 | . 7 Naked Turns . | . . Heaviest Build 21 | 12 21 Greatest Support 40 | 32 40 Greatest Overweight (x) . | . . Average Overweight (x) . | . . Largest Inventory Capacity 10 | 8 10 Average Capacity 9 | 7 9 Most Carried 10 | 5 10 Average Carried 7 | 3 8 Final Capacity 10 | 8 10 Final Carried 7 | 5 7 Class Distribution -------------------- 100% | Mutant Dominant Class ---------------- Mutant | -10/Materials Resources | -11 -10 ----------- Run | Yrd Mat Matter Collected 553 | 270 283 Remotely . | . . Salvage Created 526 | 50 476 Parts 43 | 6 37 Haulers Intercepted 1 | . 1 Recyclers Shooed 2 | . 2 Parts Field Recycled . | . . Retrieved Matter . | . . Parts Self-Destructed . | . . Prevented . | . . Kills | -11 -10 ------- Run | Yrd Mat Combat Hostiles Destroyed 11 | . 11 Guns 11 | . 11 Classes Destroyed 5 | 1 4 Tunneler 2 | 2 . Hauler 1 | . 1 Watcher 2 | . 2 Swarmer 3 | . 3 Grunt 8 | . 8 Best Kill Streak 3 | 2 3 Combat Bots Only 3 | . 3 Max Kills in Single Turn 1 | 1 1 Gunslinging . | . . Exploded . | . . Melee . | . . Uniques/NPCs Destroyed . | . . Combat | -11 -10 -------- Run | Yrd Mat Hostile Shots Fired 98 | . 98 Missed 24 | . 24 Hits 74 | . 74 Projectile 74 | . 74 Critical Strikes 2 | . 2 Damage Taken 944 | . 944 Core 252 | . 252 Absorbed by Shields . | . . Core Remaining (%) 100 | 100 . Volleys Fired 78 | 3 75 Largest 2 | 2 2 Hottest 105 | 80 105 Shots Fired 151 | 6 145 Gun 147 | 6 141 Cannon . | . . Launcher . | . . Special 4 | . 4 Kinetic 70 | . 70 Thermal 71 | 3 68 Explosive . | . . Electromagnetic 10 | 3 7 Robot Hit Streak 11 | 3 11 Robot Miss Streak 4 | 1 4 Penetration Max . | . . Secondary Targets 2 | . 2 Max Gunslinging Chain 1 | . 1 Shots Hit Robots 94 | 4 90 Core Hits 30 | 2 28 Critical Kills . | . . Critical Parts Destroyed 1 | . 1 Critical Strikes 1 | . 1 Destroy 1 | . 1 Melee Attacks 1 | . 1 Impact 1 | . 1 Slashing . | . . Piercing . | . . Sneak Attacks . | . . Combat Hostiles . | . . Follow-up Attacks . | . . Damage Inflicted 1000 | 63 937 Guns 1000 | 63 937 Cannons . | . . Explosions . | . . Melee . | . . Ramming . | . . Kinetic 412 | . 412 Thermal 483 | 23 460 Explosive . | . . Electromagnetic 105 | 40 65 Impact . | . . Slashing . | . . Piercing . | . . Highest Corruption . | . . Average Corruption . | . . Corruption Purged . | . . Corruption Blocked . | . . Overload Shots . | . . Overflow Damage . | . . Projectiles . | . . Explosions . | . . Melee . | . . Knockbacks . | . . Impact . | . . Kinetic . | . . Secondary . | . . Self-Inflicted Damage . | . . Shots . | . . Rammed . | . . Targets Rammed . | . . Kicked . | . . Crushed . | . . Highest Temperature 192 | 36 192 Average Temperature 51 | 17 53 Received Heat Transfer 471 | . 471 Siege Activations . | . . Martial Activations . | . . Shielding Activations . | . . Robots Disrupted . | . . Combat Hostiles . | . . Robots Corrupted . | . . Combat Hostiles . | . . Parts Fried . | . . Impact Corruptions . | . . Robots Melted . | . . Combat Hostiles . | . . Parts Melted . | . . Heat Transferred 1087 | 50 1037 Parts Sabotaged . | . . Parts Stolen . | . . Parts Stripped . | . . Power Chain Reactions . | . . Alert | -11 -10 ------- Run | Yrd Mat Maximum Alert Level . | . . Low Security (%) 100 | 100 100 Level 1 . | . . Level 2 . | . . Level 3 . | . . Level 4 . | . . Level 5 . | . . High Security . | . . Max Security . | . . Peak Influence 104 | 10 104 Initial . | . . Average 26 | 1 28 Influence Increases 360 | 10 350 Destroy 0b10 Robot/C 220 | . 220 Destroy 0b10 Robot/NC 25 | 10 15 Destroy Leader 46 | . 46 Successful Hack 5 | . 5 Disable Machine 15 | . 15 Destroy Structure 4 | . 4 Lose Combat Pursuer 45 | . 45 Influence Decreases 270 | 10 260 Time Decay 240 | 10 230 Lost Part 30 | . 30 Squads Dispatched 2 | . 2 Investigation 2 | . 2 Extermination . | . . Reinforcement . | . . Assault . | . . Garrison . | . . Intercept . | . . Searches Triggered . | . . Construction Impeded . | . . Haulers Reinforced . | . . Active Scanning Responses . | . . Cargo Convoy Interrupts . | . . Stealth | -11 -10 --------- Run | Yrd Mat Distress Signals . | . . Communications Jammed . | . . Distress Signals . | . . Times Spotted 20 | . 20 Peak Tracking Total 3 | . 3 Tactical Retreats 3 | . 3 Traps | -11 -10 ------- Run | Yrd Mat Traps Triggered 3 | . 3 Indirectly . | . . Trap Hack Attempts . | . . Triggered . | . . Disarmed . | . . Reprogrammed . | . . Reused . | . . Traps Extracted . | . . Installed . | . . Triggered . | . . Machines | -11 -10 ---------- Run | Yrd Mat Machines Disabled 1 | . 1 Max in Single Turn 1 | . 1 Machines Repaired . | . . Machines Dismantled . | . . Machines Sabotaged . | . . Overloaded Fab Kills . | . . Hacking | -11 -10 --------- Run | Yrd Mat Machines Accessed 2 | . 2 Terminals 2 | . 2 Fabricators . | . . Repair Stations . | . . Recycling Units . | . . Scanalyzers . | . . Garrison Access . | . . Total Hacks 5 | . 5 Successful 4 | . 4 Failed 1 | . 1 Catastrophic . | . . Database Lockouts . | . . Manual 5 | . 5 Terminals 5 | . 5 Fabricators . | . . Repair Stations . | . . Recycling Units . | . . Scanalyzers . | . . Garrison Access . | . . Terminal Hacks . | . . Fabricator Hacks . | . . Repair Station Hacks . | . . Recycling Unit Hacks . | . . Scanalyzer . | . . Garrison Access Hacks . | . . Unauthorized Hacks 4 | . 4 Terminals 4 | . 4 Botnet 2 | . 2 Operators 1 | . 1 Skim 1 | . 1 Fabricators . | . . Repair Stations . | . . Recycling Units . | . . Scanalyzers . | . . Garrison Access . | . . Data Cores Recovered . | . . Used . | . . Hacking Detections 2 | . 2 Full Trace Events . | . . Feedback Events . | . . Feedback Blocked . | . . Robot Schematics Acquired . | . . Robots Built . | . . Authchips . | . . Time . | . . Total Robot Build Rating . | . . Part Schematics Acquired . | . . Parts Built . | . . Authchips . | . . Time . | . . Total Part Build Rating . | . . Parts Repaired . | . . Time . | . . Parts Recycled . | . . Recycled Matter . | . . Retrieved Matter . | . . Retrieved Components . | . . Parts Scanalyzed . | . . Part Schematics Acquired . | . . Parts Damaged . | . . Bothacking | -11 -10 ------------ Run | Yrd Mat Used RIF Installer . | . . Robots Hacked . | . . Non-combat . | . . Combat . | . . Robot Hacks Applied . | . . Relay Couplers Released . | . . Fabnet Peak Effective % . | . . Robots Rewired . | . . Allies Hacked . | . . Hacks Repelled . | . . Allies | -11 -10 -------- Run | Yrd Mat Total Allies . | . . Largest Group . | . . Highest-Rated Group . | . . Highest-Rated Ally . | . . Total Orders . | . . Ally Attacks . | . . Total Damage . | . . Kills . | . . Allies Corrupted . | . . Allies Melted . | . . Intel | -11 -10 ------- Run | Yrd Mat Active Infowar (turns) 1006 | 17 989 Sensors 271 | . 271 Seismic 735 | 17 718 Robot Analysis Total . | . . Derelict Logs Recovered . | . . Drone Launches . | . . Drone Recoveries . | . . Exploration | -11 -10 ------------- Run | Yrd Mat Turns Passed 1075 | 80 995 Spaces Moved 590 | 55 535 Core 3 | 3 . Treads 125 | . 125 Legs . | . . Wheels 462 | 52 410 Hover . | . . Flight . | . . Fastest Speed 50 | 50 100 Average Speed 112 | 97 114 Slowest Speed 160 | 100 160 Overloaded Moves . | . . Propulsion Burnouts . | . . Robots Hopped . | . . Potential Cave-ins . | . . Cave-ins Triggered . | . . Exploration Rate (%) 42 | 3 81 Regions Visited 1 Branch Regions . Pre-discovered Areas . | . . Known Exits Taken . | . . Unknown Exits Taken 1 | 1 . Scrap Searched . | . . Spaces Dug 4 | . 4 Terrain Destroyed 4 | . 4 Melee . | . . Projectile 4 | . 4 AOE . | . . Terrain Rammed . | . . Walls Destroyed . | . . Machines Disabled . | . . Actions | -11 -10 --------- Run | Yrd Mat Total 844 | 72 772 Wait 126 | 2 124 Move 589 | 54 535 Hop . | . . Pick Up 14 | 6 8 Fast Attach 9 | 6 3 Attach 7 | 1 6 Detach 2 | . 2 Swap 14 | . 14 Drop 4 | . 4 Fire 78 | 3 75 Melee 1 | . 1 Ram . | . . Kick . | . . Crush . | . . Escape Stasis . | . . Rewire . | . . Trap . | . . Miscellaneous . | . . Route ------- -11/Scrapyard -10/Materials (discovered 4 exits: [*Mat x3] / [*Min]) History --------- Turn | Location | Event 11 | -11/Scrapyard | Discovered new exit (range 15) 81 | -11/Scrapyard | Entered Materials 321 | -10/Materials | Build established: Mutant 360 | -10/Materials | Discovered new exit (range 4) 444 | -10/Materials | Discovered new exit (range 16) 846 | -10/Materials | Core integrity fell below 50% 906 | -10/Materials | Core integrity fell below 20% 950 | -10/Materials | Discovered new exit (range 5) 1028 | -10/Materials | Discovered new exit (range 7) 1076 | -10/Materials | Destroyed by G-34 Mercenary with Small Laser Last Messages --------------- 00938_ U-05 Engineer lays Concrete. 00946_ U-05 Engineer builds a Wall. 00950_ EXIT=FOUND 00950_ U-05 Engineer builds a Wall. 00951_ Acquired 14 matter. 00954_ U-05 Engineer builds a Wall. 00967_ A-02 Transporter destroyed. 00983_ Acquired 23 matter. 01012_ Connecting with Terminal... 01028_ EXIT=FOUND 01033_ Connecting with Terminal... 01041_ T-07 Excavator is excavating. 01049_ Triggered Alarm Trap. 01049_ An alarm sounds. 01049_ ALERT: Alarm triggered, dispatching investigation squad. 01049_ T-07 Excavator is excavating. 01063_ Lgt. Treads destroyed. 01071_ Lgt. Assault Rifle destroyed. 01075_ G-34 Mercenary destroyed. Map ----- +----------------------------------------------------+ | ????###############??????????????????????? | | ????# """ """ """ ######?????????????????? | | ????# """ """ """ # ######????????????? | | ????# """ """ """ + ###??????????? | | ##### # % " #??????????? | | + # """""""##?????????? | | ##### ## "" " #?????????? | | ????################ "" " #?????????? | | ?????#####?????????# #?????????? | | ?????# #?????????# ##????????? | | ?????# < #????????## #????????? | | ?????# [##########= # #????????? | | ?????+ *=%[= *! # ##????????? | | ?????# == * = # " #????????? | | ?????# =########## " " ##????????? | | ?????# #############"" " #?????????? | | ?????# # ???# " " #?????????? | | ?????# # """ #??### ###?????????? | | ?????# # """ #????#######???????????? | | ?????# !+ """ #????########??????????? | | ?????#=!|# #????# #??????????? | | ?????#!!%# """ #????# !!!#??????????? | | ?????# !|# """ ]#????# !!!#??????????? | | ?????# !*# """ #????# !! #??????????? | | ?????# # =?????# #??????????? | | ?????# ########??????# @%= #??????????? | | ?????+ #################g####??????????? | | ?????# [! # #????????? | | ?????# ? #????????? | | ?????# # #????????? | | ?????# ########### ###### #?#????????? | | ?????# ## T # #????? #??????????? | | ?????# ## # #####??#??????????? | | ?????# ## # #?????????????? | | ?????# ## + < #?????????????? | | ?????# ## # #?????????????? | | ????## ## # #####?????????????? | | ##### # %! # #?????????????????? | | # ! # #?????????????????? | | T + ! # +?????????????????? | | ########## #?????????????????? | | ##### #????????# #?????????????????? | | ????#######????????# #?????????????????? | | ???????????????????# #?????????????????? | | ???????????????????# #?????????????????? | | ????#####??????????# #?????????????????? | | ????? ########??# +?????????????????? | | ????? + #??# #?????????????????? | | ????? # #### #?????????????????? | | ?????# # """ + #?????????????????? | +----------------------------------------------------+ Best States ------------- Heat Dissipation 25 Energy Generation 12 Energy Capacity 265 Matter Stores 300 Matter Capacity 300 Sight Range 16 Robot Scan Range 14 Terrain Scan Density 10 Evasion (%) 40 Recoil Reduction 2 Item Schematics ----------------- None Robot Schematics ------------------ None Fabricated ------------ Nothing Repaired ---------- Nothing Alien Tech Used ----------------- None Achievements -------------- None Challenges ------------ None Game ------ Seed MicrowarpWeaponSuperbattery Manual? 0 Play Time 00:18:30 Cumulative 13.8 hours Start 2025.10.03 @ 23:08:27 End 2025.10.03 @ 23:39:37 Sessions 1 Manual Loads 0 Difficulty Rogue Special Mode None Game No. 5 Rogue 5 Adventurer 0 Explorer 0 Win Type - Total 0 Types 0/0/0/0/0/0/0/0/0/0 Lore% 3 Gallery% 6 Achievement% 15 Wizard Run 0 Options --------- Layout 2 ASCII 0 Keyboard 1 Movement Numpad Keybinds 0 Fullscreen 1 Font 24/Smallcaps Map View 50x49 Zoom Use 7% Tactical HUD 1 Map Filters SHIFT_HUE(20) Filters SHIFT_HUE(340) Steam 0 RUN: eedd76bb-1dff-4d31-a61d-cbdedbe91b57